bitfinex-derivatives/quotes_ETHF0:USTF0_20241022
["timestamp","ask_amount","ask_price","bid_price","bid_amount"]
[1729613856413,1.91650474,2628.5,2628.4,1.37]
[1729613857405,1.91650474,2628.5,2628.4,1.75063]
[1729613860103,1.91650474,2628.5,2628.4,2.87793]
[1729613866121,1.91650474,2628.5,2628.4,43.67793]
[1729613873216,1.91650474,2628.5,2628.4,2.87793]
[1729613874421,2.29711474,2628.5,2628.4,1.37]
[1729613874616,1.91650474,2628.5,2628.4,1.37]
[1729613875524,1.91650474,2628.5,2628.4,1.75063]
[1729613875924,1.91650474,2628.5,2628.4,2.83743]
[1729613876721,1.91650474,2628.5,2628.4,1.37]
[1729613877822,1.91650474,2628.5,2628.4,1.75063]
[1729613878023,1.91650474,2628.5,2628.4,1.37]
[1729613878224,1.91650474,2628.5,2628.4,1.75063]
[1729613878817,1.91650474,2628.5,2628.4,1.37]
[1729613879423,3.02600474,2628.5,2628.4,1.37]
[1729613881923,3.02600474,2628.5,2628.4,1.75063]
[1729613882221,3.02600474,2628.5,2628.4,1.37]
[1729613882423,3.40661474,2628.5,2628.3,1.37]
[1729613882722,1.85190474,2628.4,2628.3,1.37]
[1729613883116,0.74420474,2628.4,2628.3,1.37]
[1729613883323,0.74420474,2628.4,2628.3,1.75064]
[1729613883627,0.74420474,2628.4,2628.3,2.80844]
[1729613884017,1.1077,2628.8,2628.3,6.2326]
[1729613884325,1.37,2629.6,2628.7,5.9478]
[1729613884519,0.74420474,2629.0,2628.9,0.38055]
[1729613884715,0.74420474,2629.0,2628.9,1.75055]
[1729613886124,0.74420474,2629.0,2628.8,1.0918]
[1729613886317,3.32546474,2628.9,2628.6,0.38059]
[1729613886516,2.58126,2628.9,2628.8,1.37]
[1729613886727,3.32546474,2628.9,2628.8,1.37]
[1729613887129,2.94490474,2628.9,2628.8,1.37]
[1729613887925,3.32545474,2628.9,2628.8,1.37]
[1729613891828,0.38057,2628.8,2628.7,1.37]
[1729613892131,0.74420474,2628.8,2628.7,1.37]
[1729613892524,1.12477474,2628.8,2628.7,1.37]
[1729613893332,0.38058,2628.7,2628.6,1.37]
[1729613893534,1.12478474,2628.7,2628.6,1.37]
[1729613893724,2.11420474,2628.7,2628.3,1.37]
[1729613893923,2.11420474,2628.4,2628.1,4.5668]
[1729613894236,2.49486474,2628.2,2628.1,1.37]
[1729613894532,1.12486474,2628.2,2628.1,1.37]
[1729613894722,2.49486474,2628.2,2628.1,1.37]
[1729613895527,0.38067,2628.1,2628.0,1.37]
[1729613895729,1.12487474,2628.1,2627.9,10.54669067]
[1729613895925,0.74420474,2628.0,2627.9,10.54669067]
[1729613896241,1.83310474,2628.0,2627.9,10.54669067]
[1729613896727,1.83310474,2628.0,2627.9,11.53600067]
[1729613897327,1.83310474,2628.0,2627.9,11.91670067]
[1729613897721,1.83310474,2628.0,2627.9,1.7507]
[1729613901836,0.74420474,2628.0,2627.9,1.7507]
[1729613902231,0.74420474,2628.0,2627.9,2.8294]
[1729613902929,1.1187,2628.4,2628.2,0.38064]
[1729613903123,1.49933,2628.4,2628.3,3.6418]
[1729613903526,2.24353474,2628.4,2628.3,3.6418]
[1729613904124,1.86290474,2628.4,2628.3,3.6418]
[1729613904323,1.86290474,2628.4,2628.3,4.02244]
[1729613904527,2.24353474,2628.4,2628.3,3.6418]
[1729613904731,2.24353474,2628.4,2628.3,2.4723]
[1729613905034,2.24353474,2628.4,2628.3,2.85294]
[1729613909138,3.61353474,2628.4,2628.3,2.85294]
[1729613911242,3.61353474,2628.4,2628.3,1.75064]
[1729613917648,3.23290474,2628.4,2628.1,2.5395]
[1729613917839,0.74420474,2628.2,2628.1,2.92017]
[1729613921044,0.38067,2628.1,2628.0,1.1421]
[1729613921236,4.73077474,2628.1,2628.0,1.1421]
[1729613921442,0.38073,2627.7,2627.6,1.0732]
[1729613921642,0.38074,2627.6,2627.5,1.0889]
[1729613921842,3.63764474,2627.6,2627.5,2.4589]
[1729613922052,3.63764474,2627.6,2627.5,1.0889]
[1729613922845,3.25690474,2627.6,2627.4,1.37]
[1729613923040,1.12496474,2627.5,2627.4,1.37]
[1729613930254,2.11420474,2627.5,2627.3,2.4432]
[1729613930549,2.11420474,2627.4,2627.0,1.0889]
[1729613930753,4.3505,2627.6,2627.0,1.46972]
[1729613930754,0.74420474,2627.1,2627.0,1.46972]
[1729613931054,0.74420474,2627.1,2627.0,43.63972]
[1729613931252,0.74420474,2627.1,2627.0,2.4589]
[1729613932346,0.74420474,2627.1,2627.0,2.83973]
[1729613932748,0.74420474,2627.1,2627.0,2.4589]
[1729613933554,0.74420474,2627.1,2627.0,2.83973]
[1729613933759,0.74420474,2627.1,2627.0,2.4589]
[1729613935859,1.12501474,2627.1,2627.0,2.4589]
[1729613936054,2.11420474,2627.1,2627.0,2.4589]
[1729613936656,2.11420474,2627.1,2627.0,1.0889]
[1729613936844,2.49501474,2627.1,2627.0,1.0889]
[1729613939262,0.38086,2626.9,2626.7,42.55087]
[1729613939450,2.49506474,2626.8,2626.7,42.55087]
[1729613939756,2.49506474,2626.8,2626.7,42.17]
[1729613939961,2.49506474,2626.8,2626.6,2.49748]
[1729613940156,1.88550474,2626.7,2626.6,2.49748]
[1729613941154,2.26637474,2626.7,2626.6,2.1166]
[1729613941352,1.88550474,2626.7,2626.6,3.86749]
[1729613941555,2.26637474,2626.7,2626.6,3.4866]
[1729613941855,3.63637474,2626.7,2626.6,3.4866]
[1729613942063,3.63637474,2626.7,2626.6,1.0625]
[1729613942358,0.38091,2626.5,2626.3,4.17363]
[1729613942555,1.75091,2626.5,2626.4,2.4259]
[1729613942951,2.49511474,2626.5,2626.4,2.4259]
[1729613943362,2.11420474,2626.5,2626.4,2.4259]
[1729613943562,0.74420474,2626.5,2626.4,2.4259]
[1729613944662,1.12510474,2626.5,2626.4,2.4259]
[1729613945772,2.49510474,2626.5,2626.4,1.0559]
[1729613948658,2.11420474,2626.5,2626.4,2.4259]
[1729613948961,1.12510474,2626.5,2626.4,2.4259]
[1729613950366,2.49510474,2626.5,2626.4,2.4259]
[1729613951665,2.49510474,2626.5,2626.4,2.80682]
[1729613951865,2.49510474,2626.5,2626.4,2.4259]
[1729613953865,2.49510474,2626.5,2626.4,1.0559]
[1729613954069,0.38093,2626.3,2626.2,1.37]
[1729613954259,0.38094,2626.2,2626.1,3.2078]
[1729613954459,3.62864474,2626.2,2626.1,3.2078]
[1729613956968,3.24770474,2626.2,2625.9,3.2583]
[1729613957160,3.24770474,2626.2,2625.9,1.07]
[1729613957161,2.49517474,2626.0,2625.9,1.07]
[1729613957363,2.49517474,2626.0,2625.9,1.45099]
[1729613960074,2.11420474,2626.0,2625.4,3.2078]
[1729613960270,1.37,2625.7,2625.6,1.37]
[1729613960472,1.37,2625.7,2625.1,3.2078]
[1729613960669,2.11420474,2625.2,2624.5,2.29997]
[1729613960879,1.37,2624.8,2624.7,1.37]
[1729613961074,2.11420474,2624.9,2624.8,0.38115]
[1729613961269,0.38116,2624.7,2624.6,2.1922]
[1729613961469,2.11420474,2624.7,2624.6,3.5622]
[1729613961668,2.11420474,2624.7,2624.6,3.94338]
[1729613961875,2.11420474,2624.7,2624.6,3.5622]
[1729613964282,0.74420474,2624.7,2624.6,2.1922]
[1729613965681,0.74420474,2624.7,2624.6,2.57338]
[1729613971701,0.74420474,2624.7,2624.6,2.1922]
[1729613971902,0.74420474,2624.7,2624.6,1.42158]
[1729613973101,1.0434,2624.8,2624.6,1.42158]
[1729613973299,0.74420474,2624.7,2624.6,1.42158]
[1729613986301,2.11420474,2624.7,2624.6,1.42158]
[1729613988407,2.11420474,2624.7,2624.6,1.0404]
[1729613988608,6.46340474,2624.7,2624.3,2.4271]
[1729613988814,2.11420474,2624.4,2624.3,3.85902]
[1729613990510,2.11420474,2624.4,2624.3,3.88602]
[1729613990710,2.11420474,2624.4,2624.3,2.51602]
[1729613991005,2.11420474,2624.4,2623.7,2.23878131]
[1729613991006,2.11420474,2624.4,2623.7,3.2078]
[1729613991206,0.38125,2624.1,2623.9,0.38127]
[1729613991412,1.75127,2624.0,2623.8,2.57569]
[1729613991603,2.11420474,2623.9,2623.8,2.57569]
[1729613992004,2.11420474,2623.9,2623.6,40.8]
[1729613992201,2.11420474,2623.9,2623.5,1.37]
[1729613992202,2.11420474,2623.7,2623.5,1.37]
[1729613992401,2.49552474,2623.6,2623.5,1.37]
[1729613992604,2.11420474,2623.6,2623.4,1.1186]
[1729613992805,0.38136,2623.4,2623.1,0.38138]
[1729613993002,0.38136,2623.4,2623.0,1.066]
[1729613993003,0.38139,2623.1,2623.0,1.066]
[1729613993207,0.74420474,2623.0,2622.5,7.62631076]
[1729613993403,5.70347474,2622.6,2622.5,7.62631076]
[1729613994314,3.95200474,2622.6,2622.5,7.62631076]
[1729613994706,1.12567474,2622.6,2622.5,7.62631076]
[1729613995212,4.10567474,2622.6,2622.5,7.62631076]
[1729613998617,4.10567474,2622.6,2622.5,8.00779076]
[1729613998814,4.10567474,2622.6,2622.5,7.62631076]
[1729613999018,4.10567474,2622.6,2622.5,8.00779076]
[1729613999315,3.72420474,2622.6,2622.5,8.00779076]
[1729613999714,0.74420474,2622.6,2622.5,8.00779076]
[1729614001517,0.38142,2623.0,2622.7,0.38144]
[1729614001824,0.74420474,2622.7,2622.6,1.52517]
[1729614002421,4.3287,2623.2,2623.0,0.3814]
[1729614002622,0.74420474,2623.1,2623.0,0.3814]
[1729614003119,4.3287,2623.2,2622.6,46.0469]
[1729614003311,0.74420474,2623.1,2623.0,0.38141]
[1729614004015,0.74420474,2623.1,2622.9,1.344]
[1729614004210,0.74420474,2623.0,2622.9,0.38141]
[1729614004611,0.74420474,2623.0,2622.9,0.38142]
[1729614004808,0.74420474,2623.0,2622.8,1.344]
[1729614005036,3.72420474,2622.9,2622.8,1.344]
[1729614005213,0.74420474,2622.9,2622.8,1.344]
[1729614005522,0.74420474,2622.9,2622.8,1.72544]
[1729614005710,0.74420474,2622.9,2622.8,1.344]
[1729614005911,0.74420474,2622.9,2622.8,1.72544]
[1729614006815,3.2078,2623.2,2622.8,4.324]
[1729614007014,0.74420474,2623.1,2623.0,0.38141]
[1729614009017,1.0467,2623.8,2623.1,0.95349]
[1729614009318,0.74420474,2623.6,2623.5,3.36134]
[1729614009511,0.74420474,2623.6,2623.5,4.45574]
[1729614009715,3.2078,2624.2,2624.1,0.38125]
[1729614010030,3.2078,2624.2,2623.7,4.16107]
[1729614010031,3.95200474,2624.2,2623.7,4.16107]
[1729614010318,2.98,2624.3,2624.1,0.38125]
[1729614010522,2.98,2624.3,2623.8,1.344]
[1729614010713,0.74420474,2624.0,2623.9,1.52018]
[1729614012213,0.74420474,2624.0,2623.5,4.45574]
[1729614012214,0.74420474,2624.0,2623.5,1.0944]
[1729614012414,1.0967,2624.6,2623.4,1.341]
[1729614012415,0.74420474,2623.6,2623.4,1.341]
[1729614012617,0.74420474,2623.5,2623.4,1.72235]
[1729614013722,0.74420474,2623.5,2623.4,0.38135]
[1729614015220,0.74420474,2623.5,2623.4,3.36135]
[1729614015521,3.2078,2624.2,2624.1,0.38125]
[1729614015734,0.74420474,2623.9,2623.8,0.38129]
[1729614015922,0.74420474,2623.9,2623.8,1.51629]
[1729614019724,0.74420474,2623.9,2623.7,3.2078]
[1729614019923,2.98,2624.2,2623.5,1.72233]
[1729614019924,1.12549474,2623.8,2623.5,1.72233]
[1729614020115,0.74420474,2623.6,2623.5,1.72233]
[1729614021132,0.74420474,2623.6,2623.5,1.341]
[1729614021632,1.12552474,2623.6,2623.5,1.341]
[1729614021828,0.38135,2623.4,2623.1,0.38138]
[1729614022028,0.74420474,2623.2,2623.1,0.38138]
[1729614022920,5.3508,2623.9,2623.1,3.812]
[1729614023121,0.74420474,2623.5,2623.2,2.98]
[1729614023332,2.98,2623.8,2623.2,0.38138]
[1729614023518,0.74420474,2623.3,2623.2,0.38138]
[1729614025527,1.0669,2623.7,2623.2,3.812]
[1729614025728,0.74420474,2623.4,2623.1,5.50228]
[1729614025931,0.74420474,2623.4,2623.3,0.38137]
[1729614027234,0.74420474,2623.4,2623.3,1.48787]
[1729614027531,1.0924,2623.9,2623.8,0.38129]
[1729614028029,1.83660474,2623.9,2623.8,0.38129]
[1729614028234,0.74420474,2623.9,2623.8,4.70229]
[1729614028935,0.74420474,2623.9,2623.8,1.72229]
[1729614030834,0.74420474,2623.9,2623.8,4.70229]
[1729614031433,0.74420474,2623.9,2623.8,1.72229]
[1729614034637,0.74420474,2623.9,2623.8,4.70229]
[1729614035341,0.74420474,2623.9,2623.8,1.72229]
[1729614037135,0.74420474,2623.9,2623.8,0.38129]
[1729614037535,0.74420474,2623.9,2623.7,0.3813]
[1729614037734,2.94160474,2623.8,2623.7,0.3813]
[1729614038039,2.94160474,2623.8,2623.6,0.38131]
[1729614038249,2.1974,2623.8,2623.6,0.38131]
[1729614038539,0.74420474,2623.7,2623.6,0.38131]
[1729614039139,0.74420474,2623.7,2623.3,1.1065]
[1729614039442,0.74420474,2623.4,2623.3,2.82787]
[1729614040143,0.74420474,2623.4,2623.3,1.72137]
[1729614044240,0.74420474,2623.4,2623.3,0.38137]
[1729614045536,0.74420474,2623.4,2622.8,4.2231]
[1729614045537,3.95200474,2623.4,2622.8,4.2231]
[1729614045844,0.74420474,2622.9,2622.8,4.60454]
[1729614046046,0.74420474,2622.9,2622.8,7.58454]
[1729614046639,0.74420474,2622.9,2622.8,4.60454]
[1729614050152,0.74420474,2622.9,2622.8,1.39674]
[1729614051048,0.74420474,2622.9,2622.8,0.38144]
[1729614053648,0.74420474,2622.9,2622.6,2.98]
[1729614053844,1.0243,2622.8,2622.7,0.38145]
[1729614054341,1.76850474,2622.8,2622.7,0.38145]
[1729614056744,1.76850474,2622.8,2622.6,0.38145]
[1729614056944,0.74420474,2622.6,2622.5,8.65311076]
[1729614057149,0.74420474,2622.6,2622.5,7.62631076]
[1729614057548,2.19577474,2622.6,2622.5,7.62631076]
[1729614061655,2.19577474,2622.6,2622.5,8.00779076]
[1729614061855,2.19577474,2622.6,2622.5,7.62631076]
[1729614062351,2.19577474,2622.6,2622.5,8.00779076]
[1729614062952,1.81430474,2622.6,2622.5,8.00779076]
[1729614063156,2.19577474,2622.6,2622.5,8.00779076]
[1729614063354,2.19577474,2622.6,2622.5,7.62631076]
[1729614063554,2.19577474,2622.6,2622.5,8.00779076]
[1729614063956,5.17577474,2622.6,2622.5,7.62631076]
[1729614066352,2.19577474,2622.6,2622.5,7.62631076]
[1729614070758,2.19577474,2622.6,2622.5,8.00779076]
[1729614071560,2.19577474,2622.6,2622.5,7.62631076]
[1729614072461,2.19577474,2622.6,2622.5,8.00779076]
[1729614073255,2.19577474,2622.6,2622.5,7.62631076]
[1729614073562,5.17577474,2622.6,2622.5,2.61831076]
[1729614075964,2.19577474,2622.6,2622.5,2.99979076]
[1729614077160,2.19577474,2622.6,2622.5,2.61831076]
[1729614077361,2.19577474,2622.6,2622.5,2.99979076]
[1729614078265,2.19577474,2622.6,2622.5,2.61831076]
[1729614078470,2.19577474,2622.6,2622.5,2.99979076]
[1729614079065,1.90702,2623.1,2622.5,2.99979076]
[1729614079066,3.2078,2623.0,2622.5,6.43111076]
[1729614079258,3.2078,2623.0,2622.9,3.36142]
[1729614079459,3.95200474,2623.0,2622.9,0.38142]
[1729614079763,0.38145,2622.8,2622.7,0.38145]
[1729614079965,0.74420474,2622.7,2622.6,2.1898]
[1729614080271,1.12565474,2622.7,2622.6,2.57126]
[1729614080467,0.74420474,2622.7,2622.6,2.57126]
[1729614080660,1.12565474,2622.7,2622.6,2.57126]
[1729614080863,1.12565474,2622.7,2622.6,2.1898]
[1729614081565,0.74420474,2622.7,2622.6,2.57127]
[1729614083462,3.2078,2623.0,2622.9,0.38142]
[1729614083664,1.37816603,2623.4,2622.9,7.17422]
[1729614083665,3.2078,2623.4,2622.9,7.17422]
[1729614083871,3.58915,2623.4,2623.2,0.38137]
[1729614084672,3.2078,2623.4,2623.3,0.38137]
[1729614084862,3.58915,2623.4,2623.3,0.38137]
[1729614085464,3.2078,2623.4,2623.3,0.38137]
[1729614085863,3.58915,2623.4,2623.3,0.38137]
[1729614086569,3.2078,2623.4,2623.3,1.45317]
[1729614086870,0.38133,2623.6,2623.5,0.38134]
[1729614087166,1.0384,2623.7,2623.6,0.38132]
[1729614087167,0.38132,2623.7,2623.6,0.38132]
[1729614087968,3.5891,2623.8,2623.7,0.38131]
[1729614088165,3.2078,2623.8,2623.7,3.36131]
[1729614092275,3.2078,2623.8,2623.7,0.38131]
[1729614092462,3.2078,2623.8,2623.5,2.98]
[1729614092670,3.2078,2623.8,2623.4,1.0552]
[1729614092870,3.2078,2623.8,2623.4,4.98858]
[1729614093074,3.5891,2623.8,2623.6,0.38131]
[1729614094070,3.2078,2623.8,2623.4,4.0352]
[1729614094466,3.5891,2623.8,2623.6,0.38132]
[1729614094969,3.5891,2623.8,2623.4,4.0352]
[1729614095169,3.5891,2623.8,2623.6,0.38131]
[1729614095969,3.5891,2623.8,2623.4,4.0352]
[1729614096169,3.5891,2623.8,2623.6,0.38132]
[1729614099169,0.3813,2623.8,2623.6,0.38132]
[1729614100070,3.58909,2623.9,2623.7,0.3813]
[1729614100370,0.38129,2623.8,2623.7,0.3813]
[1729614102373,0.38129,2623.8,2623.6,0.38131]
[1729614103475,0.3813,2623.8,2623.7,0.38131]
[1729614104377,0.3813,2623.8,2623.6,0.38131]
[1729614104972,4.16101,2623.9,2623.4,1.0552]
[1729614105178,3.2078,2623.9,2623.4,1.0552]
[1729614105485,0.38134,2623.5,2623.1,0.95346]
[1729614105675,2.1691,2623.4,2623.3,0.38137]
[1729614112070,2.1691,2623.4,2623.2,2.98]
[1729614112277,0.38137,2623.3,2623.2,0.38137]
[1729614113075,2.1691,2623.4,2623.2,0.38138]
[1729614113273,0.38137,2623.3,2623.2,0.38138]
[1729614113479,0.38137,2623.3,2623.1,0.38139]
[1729614114179,0.38138,2623.3,2623.1,0.38139]
[1729614114373,4.16122,2623.3,2622.8,6.1878]
[1729614114586,4.16122,2623.3,2622.8,6.56922]
[1729614114587,0.38141,2623.0,2622.8,6.56922]
[1729614114779,2.1974,2622.9,2622.8,6.56922]
[1729614115480,0.38147,2622.7,2622.5,2.61831076]
[1729614115684,6.35877,2622.9,2622.5,2.61831076]
[1729614115877,5.78663,2622.9,2622.7,3.36145]
[1729614116071,5.78664,2622.9,2622.7,2.98]
[1729614116276,0.38144,2622.8,2622.7,3.36145]
[1729614116476,0.38144,2622.8,2622.7,2.98]
[1729614116878,0.38144,2622.8,2622.7,3.36145]
[1729614117186,5.78663,2622.9,2622.7,2.98]
[1729614117383,0.38144,2622.8,2622.7,3.36144]
[1729614117983,5.78664,2622.9,2622.8,0.38144]
[1729614118186,5.4052,2622.9,2622.7,2.98]
[1729614118480,3.2078,2622.9,2622.8,0.38144]
[1729614118683,3.58922,2622.9,2622.8,0.38144]
[1729614119087,0.38147,2622.7,2622.6,0.38146]
[1729614119281,0.38147,2622.6,2622.5,5.97978076]
[1729614119477,1.49527,2622.6,2622.5,2.61831076]
[1729614119789,5.30807,2622.6,2622.5,2.61831076]
[1729614120484,1.49527,2622.6,2622.5,2.61831076]
[1729614120788,5.30807,2622.6,2622.5,2.61831076]
[1729614121176,1.49527,2622.6,2622.5,2.99979076]
[1729614121376,1.1138,2622.6,2622.5,2.99979076]
[1729614121577,1.1138,2622.6,2622.5,2.61831076]
[1729614121883,1.49527,2622.6,2622.5,2.61831076]
[1729614122586,5.30807,2622.6,2622.5,2.61831076]
[1729614122890,8.51587,2622.6,2622.5,2.61831076]
[1729614123585,5.30807,2622.6,2622.5,2.61831076]
[1729614123788,8.51587,2622.6,2622.5,2.61831076]
[1729614123989,5.30807,2622.6,2622.5,2.61831076]
[1729614124293,8.51587,2622.6,2622.5,2.61831076]
[1729614124491,5.30807,2622.6,2622.5,2.61831076]
[1729614126186,0.38146,2622.7,2622.5,5.59831076]
[1729614126389,3.58919,2623.2,2622.6,3.8128]
[1729614126588,6.4633,2623.6,2623.1,2.98]
[1729614126892,0.38137,2623.3,2623.2,0.38137]
[1729614127388,0.3814,2623.1,2623.0,0.3814]
[1729614127586,0.38137,2623.3,2622.9,0.38142]
[1729614127785,0.38142,2623.0,2622.9,0.38142]
[1729614127983,0.95346,2623.2,2622.7,1.0551]
[1729614128193,0.38145,2622.8,2622.7,0.38145]
[1729614128389,0.38145,2622.8,2622.6,5.5824]
[1729614128696,0.38145,2622.8,2622.6,5.96386]
[1729614128995,2.0983,2622.9,2622.6,5.5824]
[1729614128996,2.47973,2622.9,2622.6,5.5824]
[1729614129294,0.38144,2622.8,2622.7,0.38145]
[1729614130390,0.38144,2622.8,2622.6,5.5824]
[1729614130590,0.38144,2622.8,2622.6,5.96386]
[1729614130988,0.38144,2622.8,2622.6,2.75606]
[1729614131191,0.38144,2622.8,2622.6,5.96386]
[1729614131386,0.38145,2622.7,2622.5,2.61831076]
[1729614131593,0.38147,2622.6,2622.5,2.61831076]
[1729614133393,1.45206,2622.7,2622.6,0.38147]
[1729614133589,0.38144,2622.9,2622.6,2.98]
[1729614133784,1.1009,2623.1,2622.6,4.0552]
[1729614133985,0.38145,2622.8,2622.7,0.38145]
[1729614134384,2.0544,2623.1,2622.6,0.38146]
[1729614134385,0.38146,2622.7,2622.6,0.38146]
[1729614134799,0.38142,2622.9,2622.8,0.38143]
[1729614135290,0.38144,2622.8,2622.7,0.38144]
[1729614135791,1.1009,2623.1,2622.6,2.98]
[1729614135987,0.38145,2622.7,2622.6,3.36146]
[1729614136792,0.38145,2622.7,2622.6,0.38146]
[1729614137191,0.95353,2623.0,2622.5,2.61831076]
[1729614137385,0.95353,2623.0,2622.6,0.38147]
[1729614137694,0.38145,2622.7,2622.6,0.38147]
[1729614137895,0.95353,2623.0,2622.5,2.61831076]
[1729614138094,0.38147,2622.6,2622.5,2.99979076]
[1729614138589,0.38147,2622.6,2622.5,2.61831076]
[1729614139486,4.19427,2622.6,2622.5,2.61831076]
[1729614140785,0.38147,2622.6,2622.5,2.61831076]
[1729614141794,0.38147,2622.6,2622.5,2.99979076]
[1729614141989,0.38147,2622.6,2622.5,2.61831076]
[1729614142392,0.38147,2622.6,2622.5,2.99979076]
[1729614145795,0.38143,2622.9,2622.8,0.38143]
[1729614145995,2.04304,2623.0,2622.6,1.0243]
[1729614146201,0.38145,2622.7,2622.6,1.40576]
[1729614150590,0.38145,2622.7,2622.6,1.0243]
[1729614151699,0.38145,2622.7,2622.6,1.40577]
[1729614152000,0.38145,2622.7,2622.6,1.0243]
[1729614152797,0.38145,2622.7,2622.6,1.40577]
[1729614152998,0.38145,2622.7,2622.6,1.0243]
[1729614153193,0.38147,2622.6,2622.5,2.99979076]
[1729614153593,0.38146,2622.7,2622.6,0.38146]
[1729614153804,0.38145,2622.7,2622.6,0.38145]
[1729614154002,1.48925,2622.8,2622.7,0.38145]
[1729614154403,1.48925,2622.8,2622.7,1.37]
[1729614156605,1.48925,2622.8,2622.7,1.75145]
[1729614158808,4.3239,2623.2,2622.7,2.74]
[1729614159109,4.3239,2623.2,2622.9,1.37]
[1729614159110,2.4145,2623.1,2622.9,1.37]
[1729614159307,2.4145,2623.1,2622.5,3.57202076]
[1729614159308,0.38145,2622.9,2622.8,1.75143]
[1729614159702,0.38146,2622.7,2622.6,1.75145]
[1729614161012,0.38145,2622.8,2622.7,0.38144]
[1729614161209,0.38145,2622.8,2622.7,3.82344]
[1729614163102,0.38145,2622.8,2622.7,3.442]
[1729614163305,0.38145,2622.8,2622.7,3.82345]
[1729614163809,0.38145,2622.8,2622.7,3.442]
[1729614164209,0.38145,2622.8,2622.7,3.82345]
[1729614165112,0.38145,2622.8,2622.7,3.442]
[1729614166212,0.38145,2622.8,2622.7,3.82345]
[1729614167022,3.2078,2623.1,2622.8,0.9536]
[1729614167225,6.3656,2623.5,2623.0,1.37]
[1729614167515,0.38138,2623.2,2623.1,1.43099]
[1729614167815,0.38138,2623.2,2623.1,2.80099]
[1729614168214,8.68897,2623.5,2623.1,2.4196]
[1729614168411,6.3656,2623.5,2623.4,1.37]
[1729614168720,6.74694,2623.5,2623.4,1.75135]
[1729614169310,3.2078,2623.5,2623.4,1.75135]
[1729614169617,0.38134,2623.5,2623.4,1.75135]
[1729614170017,1.75134,2623.5,2623.4,1.37]
[1729614170218,0.38146,2622.8,2622.7,0.38144]
[1729614170419,0.38147,2622.6,2622.4,0.38149]
[1729614170617,0.38147,2622.6,2622.2,3.2078]
[1729614170817,0.38147,2622.6,2622.4,0.38149]
[1729614171218,0.38147,2622.6,2622.3,0.3815]
[1729614171413,0.38147,2622.6,2622.1,4.0808]
[1729614171619,0.38147,2622.6,2622.4,0.3815]
[1729614171822,0.38147,2622.6,2622.1,4.0808]
[1729614172017,0.38147,2622.6,2622.3,0.3815]
[1729614172925,0.38147,2622.6,2622.4,0.38149]
[1729614173119,0.38147,2622.6,2622.1,4.0808]
[1729614173317,0.38147,2622.6,2622.3,0.3815]
[1729614174125,0.38147,2622.6,2622.4,0.38149]
[1729614174313,0.38147,2622.6,2622.3,0.3815]
[1729614175027,0.38147,2622.6,2622.1,4.0808]
[1729614175321,0.38147,2622.6,2622.3,0.3815]
[1729614176223,4.19427,2622.6,2621.7,3.2078]
[1729614176420,7.17427,2622.6,2622.5,0.96781076]
[1729614177027,4.19427,2622.6,2622.5,0.96781076]
[1729614177228,3.8128,2622.6,2621.5,2.98]
[1729614177429,3.2109,2622.7,2621.7,0.38159]
[1729614177430,0.3816,2621.8,2621.7,0.38159]
[1729614177633,0.3816,2621.7,2621.6,1.30131]
[1729614177832,0.38158,2621.9,2621.8,0.38158]
[1729614178331,2.09,2622.0,2621.6,3.8997]
[1729614178635,0.3816,2621.8,2621.7,0.38159]
[1729614178931,2.47157,2622.0,2621.9,0.38157]
[1729614179141,0.38157,2622.0,2621.9,0.38157]
[1729614179435,1.0176,2622.2,2621.6,3.8997]
[1729614179637,0.38157,2621.9,2621.8,0.38158]
[1729614180234,1.0767,2622.4,2621.8,6.7944]
[1729614180535,0.38148,2622.5,2622.1,2.98]
[1729614180733,0.38146,2622.7,2622.2,1.98921]
[1729614180932,0.38144,2622.8,2622.6,0.38145]
[1729614181134,1.0176,2622.9,2622.3,6.1878]
[1729614181333,1.0176,2622.9,2622.5,0.38147]
[1729614181531,0.38146,2622.7,2622.5,0.38147]
[1729614181830,4.2564,2623.1,2622.5,2.98]
[1729614182031,4.2564,2623.1,2622.8,0.38143]
[1729614182235,4.2564,2623.1,2622.4,1.97364]
[1729614182236,0.38142,2622.9,2622.4,1.97364]
[1729614182442,0.38146,2622.7,2622.5,0.38147]
[1729614182830,0.38146,2622.7,2622.4,1.0199]
[1729614182831,5.20991,2623.1,2622.4,1.0199]
[1729614183035,4.2564,2623.1,2622.7,0.38145]
[1729614183237,0.38144,2622.8,2622.4,1.0199]
[1729614183438,5.20991,2623.1,2622.4,1.0199]
[1729614183635,0.38145,2622.8,2622.6,0.38146]
[1729614184229,0.38145,2622.8,2622.4,1.0199]
[1729614184440,4.2564,2623.1,2622.9,0.38142]
[1729614184648,1.0176,2623.2,2622.7,2.98]
[1729614184938,0.38146,2622.7,2622.5,0.38148]
[1729614185333,0.38146,2622.7,2622.5,0.38147]
[1729614185534,7.14129,2623.1,2622.4,1.0199]
[1729614185739,0.38147,2622.6,2622.4,1.40139]
[1729614186039,0.95354,2623.0,2622.2,2.98]
[1729614186235,0.95362,2622.8,2622.3,0.38151]
[1729614186441,0.38148,2622.5,2622.3,0.38151]
[1729614187241,1.0067,2622.7,2622.2,3.988]
[1729614187436,0.38148,2622.6,2622.4,0.38149]
[1729614188441,1.0067,2622.7,2622.2,3.988]
[1729614188642,0.38148,2622.5,2622.3,0.3815]
[1729614189143,0.3815,2622.4,2622.2,0.38152]
[1729614189342,0.38149,2622.5,2622.3,0.3815]
[1729614189738,1.0067,2622.7,2622.1,2.98]
[1729614189939,0.38149,2622.5,2622.3,0.3815]
[1729614190139,0.38148,2622.5,2622.1,2.98]
[1729614190337,3.58924,2622.8,2622.6,0.38146]
[1729614192040,3.2078,2622.8,2622.7,0.38145]
[1729614192445,3.2078,2622.8,2622.7,4.19425]
[1729614192642,3.2078,2622.8,2622.7,5.14245]